[Event "December 19 Late 2023"]
[Site "https://www.chess.com"]
[Date "2023.12.19"]
[Round "11"]
[White "Tao, Sihan"]
[Black "Malek, Omid"]
[Result "1-0"]
[Board "70"]
[TimeControl "180+1"]
[WhiteFideId "30982677"]
[BlackFideId "2605384"]
[WhiteElo "1943"]
[BlackElo "2013"]
[WhiteTeam "USA"]
[BlackTeam "CAN"]
[WhiteClock "0:00:26"]
[BlackClock "0:00:10"]

1. e4 {[%clk 0:03:00]}  e6 {[%clk 0:02:56]} 2. d4 {[%clk 0:02:59]}  d5 {[%clk 0:02:56]} 3. exd5 {[%clk 0:03:00]}  exd5 {[%clk 0:02:56]} 4. Nf3 {[%clk 0:03:00]}  Nf6 {[%clk 0:02:55]} 5. Bd3 {[%clk 0:03:00]}  Be7 {[%clk 0:02:54]} 6. O-O {[%clk 0:03:00]}  Bg4 {[%clk 0:02:55]} 7. Bf4 {[%clk 0:03:00]}  Nc6 {[%clk 0:02:54]} 8. c3 {[%clk 0:03:00]}  h6 {[%clk 0:02:52]} 9. Nbd2 {[%clk 0:03:00]}  g5 {[%clk 0:02:51]} 10. Bg3 {[%clk 0:02:58]}  Qd7 {[%clk 0:02:51]} 11. Qc2 {[%clk 0:02:58]}  O-O-O {[%clk 0:02:47]} 12. h3 {[%clk 0:02:56]}  Bxh3 {[%clk 0:02:46]} 13. gxh3 {[%clk 0:02:56]}  Kb8 {[%clk 0:02:44]} 14. Bf5 {[%clk 0:02:56]}  Qe8 {[%clk 0:02:44]} 15. Rfe1 {[%clk 0:02:56]}  Qf8 {[%clk 0:02:44]} 16. Ne5 {[%clk 0:02:56]}  Nxe5 {[%clk 0:02:40]} 17. Bxe5 {[%clk 0:02:57]}  g4 {[%clk 0:02:38]} 18. Bxg4 {[%clk 0:02:40]}  Rg8 {[%clk 0:02:35]} 19. Qf5 {[%clk 0:02:27]}  Nxg4 {[%clk 0:02:31]} 20. hxg4 {[%clk 0:02:26]}  h5 {[%clk 0:02:31]} 21. Qxh5 {[%clk 0:02:23]}  f5 {[%clk 0:02:31]} 22. Kf1 {[%clk 0:02:11]}  fxg4 {[%clk 0:02:21]} 23. Ke2 {[%clk 0:02:05]}  Bg5 {[%clk 0:02:17]} 24. Qh7 {[%clk 0:01:49]}  Re8 {[%clk 0:02:02]} 25. Qxc7+ {[%clk 0:01:44]}  Ka8 {[%clk 0:02:02]} 26. Rf1 {[%clk 0:01:29]}  Qf5 {[%clk 0:01:58]} 27. Rae1 {[%clk 0:01:20]}  Qc2 {[%clk 0:01:53]} 28. Rd1 {[%clk 0:01:15]}  Rgf8 {[%clk 0:01:21]} 29. Qd7 {[%clk 0:00:58]}  Rxe5+ {[%clk 0:00:53]} 30. dxe5 {[%clk 0:00:57]}  Rd8 {[%clk 0:00:53]} 31. Qb5 {[%clk 0:00:42]}  Qf5 {[%clk 0:00:44]} 32. Rde1 {[%clk 0:00:34]}  d4 {[%clk 0:00:42]} 33. Qd3 {[%clk 0:00:32]}  Qxe5+ {[%clk 0:00:31]} 34. Kd1 {[%clk 0:00:31]}  Qa5 {[%clk 0:00:30]} 35. Nb3 {[%clk 0:00:17]}  Qxa2 {[%clk 0:00:28]} 36. Kc2 {[%clk 0:00:18]}  dxc3 {[%clk 0:00:25]} 37. Qxc3 {[%clk 0:00:18]}  Qa6 {[%clk 0:00:19]} 38. Kb1 {[%clk 0:00:18]}  Qg6+ {[%clk 0:00:17]} 39. Qc2 {[%clk 0:00:18]}  Qb6 {[%clk 0:00:13]} 40. Rd1 {[%clk 0:00:19]}  Rb8 {[%clk 0:00:13]} 41. Rfe1 {[%clk 0:00:19]}  Bf6 {[%clk 0:00:11]} 42. Nc5 {[%clk 0:00:19]}  Rd8 {[%clk 0:00:05]} 43. Nd7 {[%clk 0:00:18]}  Qxb2+ {[%clk 0:00:01]} 44. Qxb2 {[%clk 0:00:18]}  Bxb2 {[%clk 0:00:01]} 45. Nb6+ {[%clk 0:00:19]}  Kb8 {[%clk 0:00:01]} 46. Rxd8+ {[%clk 0:00:20]}  Kc7 {[%clk 0:00:02]} 47. Kxb2 {[%clk 0:00:20]}  Kxb6 {[%clk 0:00:02]} 48. Rd6+ {[%clk 0:00:20]}  Kb5 {[%clk 0:00:03]} 49. Rg6 {[%clk 0:00:21]}  b6 {[%clk 0:00:04]} 50. Rxg4 {[%clk 0:00:21]}  Ka6 {[%clk 0:00:04]} 51. Ra1+ {[%clk 0:00:21]}  Kb7 {[%clk 0:00:05]} 52. Rg7+ {[%clk 0:00:22]}  Kc6 {[%clk 0:00:06]} 53. Rgxa7 {[%clk 0:00:23]}  Kd5 {[%clk 0:00:07]} 54. R7a6 {[%clk 0:00:23]}  Ke4 {[%clk 0:00:08]} 55. Rxb6 {[%clk 0:00:24]}  Kf3 {[%clk 0:00:08]} 56. Rb3+ {[%clk 0:00:24]}  Kg2 {[%clk 0:00:09]} 57. Ka3 {[%clk 0:00:25]}  Kxf2 {[%clk 0:00:09]} 58. Ra2+ {[%clk 0:00:25]}  Ke1 {[%clk 0:00:10]} 59. Rb1# {[%clk 0:00:26]} 1-0

[Event "December 19 Late 2023"]
[Site "https://www.chess.com"]
[Date "2023.12.19"]
[Round "11"]
[White "Crispin Ferreras, Darvi Abraham"]
[Black "Ferreira, Vitor Hugo Vieira"]
[Result "0-1"]
[Board "71"]
[TimeControl "180+1"]
[WhiteFideId "6402771"]
[BlackFideId "2119765"]
[WhiteElo "2149"]
[BlackElo "2123"]
[WhiteTeam "DOM"]
[BlackTeam "BRA"]
[WhiteClock "0:01:00"]
[BlackClock "0:00:55"]

1. e4 {[%clk 0:03:00]}  c5 {[%clk 0:02:59]} 2. Nf3 {[%clk 0:02:59]}  d6 {[%clk 0:02:59]} 3. d4 {[%clk 0:02:58]}  cxd4 {[%clk 0:03:00]} 4. Nxd4 {[%clk 0:02:59]}  Nf6 {[%clk 0:03:00]} 5. Nc3 {[%clk 0:02:59]}  a6 {[%clk 0:03:01]} 6. h4 {[%clk 0:02:59]}  e5 {[%clk 0:02:57]} 7. Nb3 {[%clk 0:02:59]}  Be6 {[%clk 0:02:55]} 8. Be2 {[%clk 0:02:55]}  Nc6 {[%clk 0:02:51]} 9. g4 {[%clk 0:02:55]}  d5 {[%clk 0:02:50]} 10. exd5 {[%clk 0:02:52]}  Nxd5 {[%clk 0:02:51]} 11. Bd2 {[%clk 0:02:44]}  Bb4 {[%clk 0:02:45]} 12. Bf3 {[%clk 0:02:42]}  Nxc3 {[%clk 0:02:30]} 13. bxc3 {[%clk 0:02:41]}  Be7 {[%clk 0:02:26]} 14. Qe2 {[%clk 0:02:40]}  Bxh4 {[%clk 0:02:22]} 15. Nc5 {[%clk 0:02:36]}  Bc8 {[%clk 0:02:07]} 16. Bxc6+ {[%clk 0:02:33]}  bxc6 {[%clk 0:02:07]} 17. Qxe5+ {[%clk 0:02:33]}  Qe7 {[%clk 0:02:04]} 18. Qxe7+ {[%clk 0:02:32]}  Bxe7 {[%clk 0:02:04]} 19. Nd3 {[%clk 0:02:23]}  Bxg4 {[%clk 0:02:04]} 20. Ne5 {[%clk 0:02:23]}  Be6 {[%clk 0:02:00]} 21. Be3 {[%clk 0:02:13]}  Bf6 {[%clk 0:01:54]} 22. Bf4 {[%clk 0:02:10]}  Bd5 {[%clk 0:01:52]} 23. Rg1 {[%clk 0:02:08]}  O-O {[%clk 0:01:52]} 24. Kd2 {[%clk 0:02:03]}  Rad8 {[%clk 0:01:51]} 25. Kc1 {[%clk 0:01:58]}  Rfe8 {[%clk 0:01:51]} 26. Re1 {[%clk 0:01:57]}  Re6 {[%clk 0:01:47]} 27. Bg3 {[%clk 0:01:53]}  Rde8 {[%clk 0:01:47]} 28. f4 {[%clk 0:01:53]}  Be7 {[%clk 0:01:43]} 29. a3 {[%clk 0:01:49]}  Bd6 {[%clk 0:01:40]} 30. Kd2 {[%clk 0:01:47]}  f6 {[%clk 0:01:40]} 31. Nd3 {[%clk 0:01:47]}  Rxe1 {[%clk 0:01:38]} 32. Bxe1 {[%clk 0:01:46]}  Bc4 {[%clk 0:01:34]} 33. Bg3 {[%clk 0:01:42]}  g5 {[%clk 0:01:34]} 34. Rf1 {[%clk 0:01:37]}  Re4 {[%clk 0:01:19]} 35. Rf3 {[%clk 0:01:30]}  g4 {[%clk 0:01:17]} 36. Re3 {[%clk 0:01:30]}  Bxd3 {[%clk 0:01:15]} 37. cxd3 {[%clk 0:01:20]}  Rxe3 {[%clk 0:01:10]} 38. Kxe3 {[%clk 0:01:21]}  Bxa3 {[%clk 0:01:10]} 39. f5 {[%clk 0:01:21]}  h5 {[%clk 0:01:08]} 40. c4 {[%clk 0:01:15]}  Bb4 {[%clk 0:00:58]} 41. d4 {[%clk 0:01:14]}  a5 {[%clk 0:00:58]} 42. d5 {[%clk 0:01:11]}  cxd5 {[%clk 0:00:58]} 43. cxd5 {[%clk 0:01:12]}  Kf8 {[%clk 0:00:58]} 44. Kd4 {[%clk 0:01:11]}  Ke7 {[%clk 0:00:57]} 45. Kc4 {[%clk 0:01:11]}  Bd6 {[%clk 0:00:57]} 46. Bf2 {[%clk 0:01:06]}  g3 {[%clk 0:00:56]} 47. Bg1 {[%clk 0:01:04]}  h4 {[%clk 0:00:56]} 48. Kb5 {[%clk 0:01:00]}  h3 {[%clk 0:00:55]} 0-1

[Event "December 19 Late 2023"]
[Site "https://www.chess.com"]
[Date "2023.12.19"]
[Round "11"]
[White "Porat, Tori"]
[Black "Chaika, Vitalii"]
[Result "1/2-1/2"]
[Board "75"]
[TimeControl "180+1"]
[WhiteFideId "30982626"]
[BlackFideId "14111802"]
[WhiteElo "1693"]
[BlackElo "2010"]
[WhiteTeam "USA"]
[BlackTeam "UKR"]
[WhiteClock "0:00:27"]
[BlackClock "0:00:23"]

1. d4 {[%clk 0:03:00]}  g6 {[%clk 0:02:58]} 2. c4 {[%clk 0:03:00]}  c5 {[%clk 0:02:56]} 3. d5 {[%clk 0:03:00]}  e5 {[%clk 0:02:56]} 4. e4 {[%clk 0:02:59]}  d6 {[%clk 0:02:56]} 5. Nc3 {[%clk 0:02:59]}  h5 {[%clk 0:02:56]} 6. h3 {[%clk 0:02:58]}  Bh6 {[%clk 0:02:49]} 7. Bxh6 {[%clk 0:02:56]}  Nxh6 {[%clk 0:02:49]} 8. Nf3 {[%clk 0:02:56]}  a6 {[%clk 0:02:46]} 9. Bd3 {[%clk 0:02:54]}  Nd7 {[%clk 0:02:42]} 10. a3 {[%clk 0:02:51]}  Kf8 {[%clk 0:02:40]} 11. Qd2 {[%clk 0:02:49]}  Kg7 {[%clk 0:02:37]} 12. O-O {[%clk 0:02:44]}  f6 {[%clk 0:02:33]} 13. b4 {[%clk 0:02:42]}  Qc7 {[%clk 0:02:29]} 14. Nh2 {[%clk 0:02:33]}  Nf7 {[%clk 0:02:26]} 15. f4 {[%clk 0:02:32]}  exf4 {[%clk 0:02:26]} 16. Qxf4 {[%clk 0:02:31]}  Nfe5 {[%clk 0:02:24]} 17. Be2 {[%clk 0:02:28]}  Rf8 {[%clk 0:02:19]} 18. Nf3 {[%clk 0:02:24]}  Rf7 {[%clk 0:01:58]} 19. b5 {[%clk 0:01:57]}  Qa5 {[%clk 0:01:40]} 20. Qe3 {[%clk 0:01:44]}  Qd8 {[%clk 0:01:25]} 21. a4 {[%clk 0:01:36]}  Nxf3+ {[%clk 0:01:14]} 22. Qxf3 {[%clk 0:01:22]}  Ne5 {[%clk 0:01:12]} 23. Qg3 {[%clk 0:01:20]}  Kh7 {[%clk 0:01:06]} 24. Rf2 {[%clk 0:01:17]}  Qe7 {[%clk 0:01:04]} 25. a5 {[%clk 0:01:10]}  Bd7 {[%clk 0:01:02]} 26. b6 {[%clk 0:01:08]}  Raf8 {[%clk 0:00:56]} 27. Raf1 {[%clk 0:01:03]}  Rg7 {[%clk 0:00:54]} 28. Qe3 {[%clk 0:00:58]}  Rgf7 {[%clk 0:00:47]} 29. Qg3 {[%clk 0:00:55]}  Bc8 {[%clk 0:00:46]} 30. Qe3 {[%clk 0:00:52]}  Kg7 {[%clk 0:00:41]} 31. Qg3 {[%clk 0:00:50]}  Rh8 {[%clk 0:00:39]} 32. Nd1 {[%clk 0:00:46]}  h4 {[%clk 0:00:39]} 33. Qc3 {[%clk 0:00:42]}  Bd7 {[%clk 0:00:26]} 34. Ne3 {[%clk 0:00:40]}  Bc8 {[%clk 0:00:26]} 35. Qd2 {[%clk 0:00:37]}  Bd7 {[%clk 0:00:26]} 36. Qc3 {[%clk 0:00:36]}  Rh6 {[%clk 0:00:24]} 37. Qd2 {[%clk 0:00:30]}  Bc8 {[%clk 0:00:24]} 38. Qc3 {[%clk 0:00:30]}  Rh7 {[%clk 0:00:24]} 39. Qd2 {[%clk 0:00:29]}  Rh8 {[%clk 0:00:24]} 40. Qc3 {[%clk 0:00:29]}  Rhf8 {[%clk 0:00:24]} 41. Qd2 {[%clk 0:00:28]}  Bd7 {[%clk 0:00:24]} 42. Qc3 {[%clk 0:00:28]}  Rg8 {[%clk 0:00:23]} 43. Qd2 {[%clk 0:00:27]}  Rh8 {[%clk 0:00:23]} 44. Qc3 {[%clk 0:00:27]} 1/2-1/2

[Event "December 19 Late 2023"]
[Site "https://www.chess.com"]
[Date "2023.12.19"]
[Round "11"]
[White "Przybylski, Wojciech"]
[Black "Biernacki, Mark"]
[Result "1-0"]
[Board "76"]
[TimeControl "180+1"]
[WhiteFideId "1117599"]
[BlackFideId "2082322"]
[WhiteElo "2203"]
[BlackElo "1965"]
[WhiteTeam "POL"]
[BlackTeam "USA"]
[WhiteClock "0:01:45"]
[BlackClock "0:00:13"]

1. e4 {[%clk 0:03:00]}  c6 {[%clk 0:02:59]} 2. d4 {[%clk 0:03:00]}  d5 {[%clk 0:03:00]} 3. e5 {[%clk 0:03:00]}  Bf5 {[%clk 0:03:00]} 4. Nf3 {[%clk 0:02:59]}  e6 {[%clk 0:02:58]} 5. Be2 {[%clk 0:02:59]}  a6 {[%clk 0:02:54]} 6. O-O {[%clk 0:02:59]}  h6 {[%clk 0:02:54]} 7. Nbd2 {[%clk 0:02:57]}  Nd7 {[%clk 0:02:55]} 8. a4 {[%clk 0:02:52]}  c5 {[%clk 0:02:51]} 9. c3 {[%clk 0:02:50]}  c4 {[%clk 0:02:50]} 10. h3 {[%clk 0:02:41]}  b5 {[%clk 0:02:49]} 11. a5 {[%clk 0:02:38]}  Ne7 {[%clk 0:02:47]} 12. b4 {[%clk 0:02:37]}  cxb3 {[%clk 0:02:37]} 13. Nxb3 {[%clk 0:02:34]}  Rc8 {[%clk 0:02:35]} 14. Ba3 {[%clk 0:02:32]}  Rxc3 {[%clk 0:02:28]} 15. Nc5 {[%clk 0:02:31]}  Nxc5 {[%clk 0:02:14]} 16. Bxc5 {[%clk 0:02:29]}  Nc6 {[%clk 0:02:12]} 17. Bb6 {[%clk 0:02:27]}  Qe7 {[%clk 0:02:09]} 18. Qd2 {[%clk 0:02:12]}  Qb4 {[%clk 0:02:04]} 19. Bxb5 {[%clk 0:02:05]}  axb5 {[%clk 0:01:44]} 20. a6 {[%clk 0:02:04]}  Be7 {[%clk 0:01:26]} 21. a7 {[%clk 0:02:03]}  Nxa7 {[%clk 0:01:27]} 22. Rxa7 {[%clk 0:02:02]}  Qb3 {[%clk 0:00:35]} 23. Ra8+ {[%clk 0:01:57]}  Kd7 {[%clk 0:00:35]} 24. Rxh8 {[%clk 0:01:51]}  Rxf3 {[%clk 0:00:33]} 25. Qa5 {[%clk 0:01:48]}  Qa3 {[%clk 0:00:13]} 26. Qxb5# {[%clk 0:01:45]} 1-0

[Event "December 19 Late 2023"]
[Site "https://www.chess.com"]
[Date "2023.12.19"]
[Round "11"]
[White "Fernandez Bustamante, Leancy B."]
[Black "Bold, Andre"]
[Result "1-0"]
[Board "77"]
[TimeControl "180+1"]
[WhiteFideId "3523870"]
[BlackFideId "16208471"]
[WhiteElo "2049"]
[BlackElo "2110"]
[WhiteTeam "CUB"]
[BlackTeam "GER"]
[WhiteClock "0:00:23"]
[BlackClock "0:00:02"]

1. e4 {[%clk 0:03:00]}  c6 {[%clk 0:02:59]} 2. Nf3 {[%clk 0:03:01]}  d5 {[%clk 0:03:00]} 3. exd5 {[%clk 0:03:02]}  cxd5 {[%clk 0:03:01]} 4. d4 {[%clk 0:03:02]}  Nf6 {[%clk 0:03:01]} 5. c3 {[%clk 0:03:03]}  Bg4 {[%clk 0:03:00]} 6. h3 {[%clk 0:03:04]}  Bxf3 {[%clk 0:03:00]} 7. Qxf3 {[%clk 0:03:05]}  e6 {[%clk 0:03:01]} 8. Bd3 {[%clk 0:03:05]}  Be7 {[%clk 0:03:00]} 9. O-O {[%clk 0:03:06]}  O-O {[%clk 0:03:00]} 10. Bf4 {[%clk 0:03:04]}  Nc6 {[%clk 0:03:00]} 11. Nd2 {[%clk 0:03:04]}  a6 {[%clk 0:02:59]} 12. Rfe1 {[%clk 0:03:01]}  b5 {[%clk 0:02:59]} 13. Rac1 {[%clk 0:03:01]}  Na5 {[%clk 0:02:58]} 14. Bb1 {[%clk 0:03:01]}  Re8 {[%clk 0:02:55]} 15. Be5 {[%clk 0:02:59]}  Nc4 {[%clk 0:02:53]} 16. Nxc4 {[%clk 0:02:51]}  bxc4 {[%clk 0:02:52]} 17. Qe2 {[%clk 0:02:46]}  Nd7 {[%clk 0:02:48]} 18. Qh5 {[%clk 0:02:41]}  g6 {[%clk 0:02:40]} 19. Qg4 {[%clk 0:02:37]}  Nxe5 {[%clk 0:02:40]} 20. Rxe5 {[%clk 0:02:28]}  Bd6 {[%clk 0:02:39]} 21. Re3 {[%clk 0:02:25]}  a5 {[%clk 0:02:31]} 22. h4 {[%clk 0:02:23]}  h5 {[%clk 0:02:22]} 23. Qh3 {[%clk 0:02:21]}  a4 {[%clk 0:02:03]} 24. g4 {[%clk 0:02:20]}  hxg4 {[%clk 0:02:01]} 25. Qxg4 {[%clk 0:02:19]}  Qc7 {[%clk 0:01:35]} 26. h5 {[%clk 0:02:09]}  Bf4 {[%clk 0:01:31]} 27. hxg6 {[%clk 0:02:06]}  f5 {[%clk 0:01:31]} 28. Qh5 {[%clk 0:01:34]}  Bxe3 {[%clk 0:01:30]} 29. fxe3 {[%clk 0:01:31]}  Ra7 {[%clk 0:01:13]} 30. Kf2 {[%clk 0:01:28]}  Qg7 {[%clk 0:00:58]} 31. Bc2 {[%clk 0:01:23]}  Kf8 {[%clk 0:00:50]} 32. Qg5 {[%clk 0:01:19]}  f4 {[%clk 0:00:38]} 33. Rh1 {[%clk 0:01:09]}  fxe3+ {[%clk 0:00:36]} 34. Ke2 {[%clk 0:01:06]}  Rf7 {[%clk 0:00:19]} 35. Rh7 {[%clk 0:00:56]}  Rf2+ {[%clk 0:00:18]} 36. Ke1 {[%clk 0:00:51]}  Rxc2 {[%clk 0:00:18]} 37. Rxg7 {[%clk 0:00:49]}  Kxg7 {[%clk 0:00:19]} 38. Qh5 {[%clk 0:00:36]}  Rg2 {[%clk 0:00:14]} 39. Qh7+ {[%clk 0:00:34]}  Kf6 {[%clk 0:00:12]} 40. Qf7+ {[%clk 0:00:35]}  Kg5 {[%clk 0:00:10]} 41. Qxe8 {[%clk 0:00:34]}  Kf4 {[%clk 0:00:10]} 42. g7 {[%clk 0:00:31]}  Rg1+ {[%clk 0:00:08]} 43. Ke2 {[%clk 0:00:30]}  Rg2+ {[%clk 0:00:08]} 44. Kf1 {[%clk 0:00:27]}  Kf3 {[%clk 0:00:02]} 45. Qf7+ {[%clk 0:00:26]}  Ke4 {[%clk 0:00:03]} 46. Qxe6+ {[%clk 0:00:24]}  Kd3 {[%clk 0:00:02]} 47. Kxg2 {[%clk 0:00:23]} 1-0

[Event "December 19 Late 2023"]
[Site "https://www.chess.com"]
[Date "2023.12.19"]
[Round "11"]
[White "Reprintsev, Alexander"]
[Black "Gerbelli Neto, Eduardo"]
[Result "0-1"]
[Board "78"]
[TimeControl "180+1"]
[WhiteFideId "14100541"]
[BlackFideId "2103281"]
[WhiteElo "2229"]
[BlackElo "2178"]
[WhiteTeam "UKR"]
[BlackTeam "BRA"]
[WhiteClock "0:00:00"]
[BlackClock "0:00:19"]

1. e4 {[%clk 0:02:58]}  e5 {[%clk 0:02:59]} 2. Nf3 {[%clk 0:02:57]}  Nc6 {[%clk 0:02:59]} 3. Bc4 {[%clk 0:02:55]}  Nf6 {[%clk 0:02:59]} 4. Ng5 {[%clk 0:02:52]}  d5 {[%clk 0:02:58]} 5. exd5 {[%clk 0:02:49]}  Nd4 {[%clk 0:02:59]} 6. c3 {[%clk 0:02:47]}  b5 {[%clk 0:02:58]} 7. Bf1 {[%clk 0:02:45]}  Nxd5 {[%clk 0:02:58]} 8. cxd4 {[%clk 0:02:39]}  Qxg5 {[%clk 0:02:57]} 9. Bxb5+ {[%clk 0:02:37]}  Kd8 {[%clk 0:02:56]} 10. O-O {[%clk 0:02:35]}  Bb7 {[%clk 0:02:55]} 11. Qf3 {[%clk 0:02:14]}  Rb8 {[%clk 0:02:55]} 12. dxe5 {[%clk 0:02:02]}  Nf4 {[%clk 0:02:27]} 13. Qg3 {[%clk 0:01:58]}  Qxe5 {[%clk 0:01:42]} 14. d4 {[%clk 0:01:44]}  Qxb5 {[%clk 0:01:32]} 15. Bxf4 {[%clk 0:01:40]}  Qd7 {[%clk 0:01:27]} 16. Nc3 {[%clk 0:01:33]}  f6 {[%clk 0:01:04]} 17. Rac1 {[%clk 0:01:25]}  g5 {[%clk 0:00:56]} 18. Bxc7+ {[%clk 0:01:19]}  Qxc7 {[%clk 0:00:52]} 19. Qxc7+ {[%clk 0:01:20]}  Kxc7 {[%clk 0:00:52]} 20. Nd5+ {[%clk 0:01:19]}  Kd8 {[%clk 0:00:48]} 21. Nxf6 {[%clk 0:01:16]}  Be7 {[%clk 0:00:43]} 22. Ng4 {[%clk 0:01:10]}  Rc8 {[%clk 0:00:32]} 23. Rxc8+ {[%clk 0:01:02]}  Kxc8 {[%clk 0:00:33]} 24. Rc1+ {[%clk 0:00:56]}  Kb8 {[%clk 0:00:30]} 25. Ne5 {[%clk 0:00:50]}  Rc8 {[%clk 0:00:28]} 26. Rxc8+ {[%clk 0:00:33]}  Kxc8 {[%clk 0:00:28]} 27. f3 {[%clk 0:00:29]}  Bd5 {[%clk 0:00:28]} 28. a3 {[%clk 0:00:24]}  Bd6 {[%clk 0:00:28]} 29. Ng4 {[%clk 0:00:16]}  Be7 {[%clk 0:00:22]} 30. Ne3 {[%clk 0:00:14]}  Bf7 {[%clk 0:00:19]} 31. Kf2 {[%clk 0:00:13]}  Bf6 {[%clk 0:00:19]} 32. d5 {[%clk 0:00:00]}  Bxb2 {[%clk 0:00:19]} 0-1

[Event "December 19 Late 2023"]
[Site "https://www.chess.com"]
[Date "2023.12.19"]
[Round "11"]
[White "Pein, Jonathan"]
[Black "Slavin, Alexey"]
[Result "0-1"]
[Board "80"]
[TimeControl "180+1"]
[WhiteFideId "417092"]
[BlackFideId "24104388"]
[WhiteElo "2130"]
[BlackElo "2264"]
[WhiteTeam "ENG"]
[BlackTeam "RUS"]
[WhiteClock "0:00:00"]
[BlackClock "0:01:28"]

1. g3 {[%clk 0:02:59]}  Nf6 {[%clk 0:02:58]} 2. Bg2 {[%clk 0:02:59]}  Nc6 {[%clk 0:02:59]} 3. e4 {[%clk 0:02:59]}  d6 {[%clk 0:02:59]} 4. d4 {[%clk 0:02:59]}  Bg4 {[%clk 0:02:57]} 5. f3 {[%clk 0:02:54]}  Bd7 {[%clk 0:02:57]} 6. Ne2 {[%clk 0:02:54]}  e5 {[%clk 0:02:57]} 7. O-O {[%clk 0:02:53]}  Be7 {[%clk 0:02:57]} 8. Nbc3 {[%clk 0:02:52]}  Qc8 {[%clk 0:02:57]} 9. d5 {[%clk 0:02:44]}  Nb8 {[%clk 0:02:56]} 10. Be3 {[%clk 0:02:34]}  Bh3 {[%clk 0:02:55]} 11. Qd2 {[%clk 0:02:32]}  Bxg2 {[%clk 0:02:54]} 12. Kxg2 {[%clk 0:02:33]}  O-O {[%clk 0:02:54]} 13. a4 {[%clk 0:02:30]}  a6 {[%clk 0:02:54]} 14. a5 {[%clk 0:02:30]}  Nbd7 {[%clk 0:02:54]} 15. b4 {[%clk 0:02:29]}  Re8 {[%clk 0:02:55]} 16. Rf2 {[%clk 0:02:24]}  Nf8 {[%clk 0:02:55]} 17. Na4 {[%clk 0:02:20]}  Ng6 {[%clk 0:02:52]} 18. c4 {[%clk 0:02:20]}  h6 {[%clk 0:02:53]} 19. c5 {[%clk 0:02:19]}  Nh7 {[%clk 0:02:42]} 20. Rc1 {[%clk 0:02:13]}  Qd8 {[%clk 0:02:39]} 21. c6 {[%clk 0:01:53]}  bxc6 {[%clk 0:02:12]} 22. Rxc6 {[%clk 0:01:54]}  Bg5 {[%clk 0:02:05]} 23. Ng1 {[%clk 0:01:35]}  Ne7 {[%clk 0:02:03]} 24. Rc4 {[%clk 0:01:33]}  Qd7 {[%clk 0:02:03]} 25. Nc3 {[%clk 0:01:26]}  f5 {[%clk 0:01:58]} 26. Bxg5 {[%clk 0:01:14]}  Nxg5 {[%clk 0:01:58]} 27. h4 {[%clk 0:01:15]}  Nh7 {[%clk 0:01:57]} 28. Qc2 {[%clk 0:01:03]}  Rf8 {[%clk 0:01:55]} 29. Nh3 {[%clk 0:00:52]}  Nf6 {[%clk 0:01:47]} 30. Ne2 {[%clk 0:00:39]}  Rac8 {[%clk 0:01:43]} 31. Qd3 {[%clk 0:00:17]}  fxe4 {[%clk 0:01:38]} 32. fxe4 {[%clk 0:00:15]}  Ng4 {[%clk 0:01:38]} 33. Rf3 {[%clk 0:00:08]}  Rxf3 {[%clk 0:01:34]} 34. Qxf3 {[%clk 0:00:09]}  Rf8 {[%clk 0:01:34]} 35. Qd3 {[%clk 0:00:09]}  Qb5 {[%clk 0:01:30]} 36. Qc2 {[%clk 0:00:03]}  Qxc4 {[%clk 0:01:29]} 37. Qxc4 {[%clk 0:00:00]}  Ne3+ {[%clk 0:01:28]} 0-1

[Event "December 19 Late 2023"]
[Site "https://www.chess.com"]
[Date "2023.12.19"]
[Round "11"]
[White "Figorito, Nick"]
[Black "Kornyukov, Alexey"]
[Result "0-1"]
[Board "81"]
[TimeControl "180+1"]
[WhiteFideId "30923689"]
[BlackFideId "4150457"]
[WhiteElo "2400"]
[BlackElo "2352"]
[WhiteTeam "USA"]
[BlackTeam "RUS"]
[WhiteClock "0:00:08"]
[BlackClock "0:00:06"]

1. Nf3 {[%clk 0:03:00]}  d5 {[%clk 0:02:59]} 2. g3 {[%clk 0:03:01]}  c6 {[%clk 0:02:54]} 3. Bg2 {[%clk 0:03:01]}  Nf6 {[%clk 0:02:54]} 4. O-O {[%clk 0:03:02]}  Bg4 {[%clk 0:02:54]} 5. Ne5 {[%clk 0:03:02]}  Bh5 {[%clk 0:02:52]} 6. c4 {[%clk 0:03:02]}  e6 {[%clk 0:02:50]} 7. Qb3 {[%clk 0:03:02]}  Qb6 {[%clk 0:02:48]} 8. Qxb6 {[%clk 0:03:02]}  axb6 {[%clk 0:02:48]} 9. cxd5 {[%clk 0:02:51]}  exd5 {[%clk 0:02:44]} 10. d4 {[%clk 0:02:45]}  Nbd7 {[%clk 0:02:31]} 11. Nxd7 {[%clk 0:02:43]}  Nxd7 {[%clk 0:02:30]} 12. Nc3 {[%clk 0:02:43]}  Bb4 {[%clk 0:02:30]} 13. Bd2 {[%clk 0:02:41]}  O-O {[%clk 0:02:25]} 14. Rfe1 {[%clk 0:02:27]}  f5 {[%clk 0:02:19]} 15. e3 {[%clk 0:02:24]}  b5 {[%clk 0:01:59]} 16. a3 {[%clk 0:02:09]}  Ba5 {[%clk 0:01:50]} 17. h4 {[%clk 0:02:04]}  Nf6 {[%clk 0:01:39]} 18. Rac1 {[%clk 0:01:53]}  Ne8 {[%clk 0:01:32]} 19. Nb1 {[%clk 0:01:47]}  Bxd2 {[%clk 0:01:25]} 20. Nxd2 {[%clk 0:01:47]}  Nd6 {[%clk 0:01:25]} 21. Rc2 {[%clk 0:01:33]}  Nc4 {[%clk 0:01:21]} 22. Nxc4 {[%clk 0:01:28]}  bxc4 {[%clk 0:01:22]} 23. Rcc1 {[%clk 0:01:13]}  Ra5 {[%clk 0:01:03]} 24. Rb1 {[%clk 0:01:05]}  Rb5 {[%clk 0:01:01]} 25. Bf1 {[%clk 0:00:51]}  Rb3 {[%clk 0:00:56]} 26. Rec1 {[%clk 0:00:39]}  Rb6 {[%clk 0:00:31]} 27. Rc3 {[%clk 0:00:27]}  Ra8 {[%clk 0:00:30]} 28. Kg2 {[%clk 0:00:17]}  Kf8 {[%clk 0:00:26]} 29. Rc2 {[%clk 0:00:12]}  Rxa3 {[%clk 0:00:22]} 30. bxa3 {[%clk 0:00:06]}  Rxb1 {[%clk 0:00:22]} 31. Be2 {[%clk 0:00:05]}  Bxe2 {[%clk 0:00:21]} 32. Rxe2 {[%clk 0:00:06]}  b5 {[%clk 0:00:20]} 33. Ra2 {[%clk 0:00:06]}  Rb3 {[%clk 0:00:19]} 34. Kf3 {[%clk 0:00:06]}  Ke7 {[%clk 0:00:18]} 35. Kf4 {[%clk 0:00:06]}  Kf6 {[%clk 0:00:17]} 36. f3 {[%clk 0:00:04]}  g6 {[%clk 0:00:15]} 37. g4 {[%clk 0:00:05]}  h6 {[%clk 0:00:14]} 38. g5+ {[%clk 0:00:04]}  hxg5+ {[%clk 0:00:15]} 39. hxg5+ {[%clk 0:00:05]}  Ke6 {[%clk 0:00:15]} 40. e4 {[%clk 0:00:05]}  fxe4 {[%clk 0:00:15]} 41. fxe4 {[%clk 0:00:06]}  Rd3 {[%clk 0:00:14]} 42. exd5+ {[%clk 0:00:03]}  Kxd5 {[%clk 0:00:13]} 43. a4 {[%clk 0:00:04]}  Rxd4+ {[%clk 0:00:13]} 44. Ke3 {[%clk 0:00:04]}  bxa4 {[%clk 0:00:11]} 45. Rxa4 {[%clk 0:00:04]}  Rg4 {[%clk 0:00:12]} 46. Kd2 {[%clk 0:00:03]}  Rxg5 {[%clk 0:00:11]} 47. Kc3 {[%clk 0:00:03]}  Rg3+ {[%clk 0:00:10]} 48. Kc2 {[%clk 0:00:03]}  Kd4 {[%clk 0:00:10]} 49. Ra8 {[%clk 0:00:02]}  Rg2+ {[%clk 0:00:10]} 50. Kd1 {[%clk 0:00:03]}  Kd3 {[%clk 0:00:10]} 51. Rd8+ {[%clk 0:00:02]}  Kc3 {[%clk 0:00:10]} 52. Rc8 {[%clk 0:00:02]}  g5 {[%clk 0:00:09]} 53. Rxc6 {[%clk 0:00:02]}  g4 {[%clk 0:00:10]} 54. Rf6 {[%clk 0:00:02]}  g3 {[%clk 0:00:07]} 55. Rf8 {[%clk 0:00:02]}  Rd2+ {[%clk 0:00:06]} 56. Ke1 {[%clk 0:00:03]}  g2 {[%clk 0:00:06]} 57. Rg8 {[%clk 0:00:01]}  Ra2 {[%clk 0:00:05]} 58. Rg3+ {[%clk 0:00:02]}  Kb4 {[%clk 0:00:05]} 59. Rg4 {[%clk 0:00:01]}  Ra1+ {[%clk 0:00:05]} 60. Kf2 {[%clk 0:00:02]}  g1=Q+ {[%clk 0:00:05]} 61. Rxg1 {[%clk 0:00:03]}  Rxg1 {[%clk 0:00:05]} 62. Kxg1 {[%clk 0:00:04]}  c3 {[%clk 0:00:05]} 63. Kf2 {[%clk 0:00:04]}  c2 {[%clk 0:00:06]} 64. Ke2 {[%clk 0:00:05]}  c1=Q {[%clk 0:00:06]} 65. Kd3 {[%clk 0:00:06]}  Qf4 {[%clk 0:00:06]} 66. Kc2 {[%clk 0:00:06]}  Qg3 {[%clk 0:00:06]} 67. Kb1 {[%clk 0:00:07]}  Kc3 {[%clk 0:00:06]} 68. Kc1 {[%clk 0:00:08]}  Qg2 {[%clk 0:00:06]} 69. Kb1 {[%clk 0:00:08]}  Qb2# {[%clk 0:00:06]} 0-1